bitfinex/quotes_SOLUSD_20251115
["timestamp","ask_amount","ask_price","bid_price","bid_amount"]
[1763177308013,2.73341115,143.43,143.37,0.14216157]
[1763177308199,0.7,143.46,143.38,2.73341115]
[1763177308403,2.73341115,143.44,143.39,2.73341115]
[1763177308716,0.7,143.43,143.38,22.79336157]
[1763177308919,2.73341115,143.42,143.38,22.79336157]
[1763177309522,0.7,143.41,143.38,25.52677272]
[1763177311532,0.7,143.43,143.38,26.08677272]
[1763177311719,0.7,143.42,143.38,26.08677272]
[1763177311917,0.7,143.42,143.33,0.70216157]
[1763177312123,0.7,143.42,143.36,0.14216157]
[1763177312322,2.73341115,143.4,143.36,0.14216157]
[1763177312829,0.7,143.39,143.36,2.73341115]
[1763177313238,0.7,143.41,143.36,3.29341115]
[1763177313434,0.7,143.41,143.37,0.14216157]
[1763177313657,0.7,143.42,143.38,2.73341115]
[1763177313819,25.38461115,143.43,143.38,2.73341115]
[1763177313820,0.7,143.41,143.38,2.73341115]
[1763177314012,0.7,143.41,143.37,3.43557272]
[1763177314413,0.7,143.45,143.4,5.60898387]
[1763177314635,0.7,143.45,143.41,2.73341115]
[1763177315325,0.7,143.45,143.4,2.87557272]
[1763177315523,3.43341115,143.45,143.4,2.87557272]
[1763177315912,0.7,143.44,143.4,2.87557272]
[1763177316416,0.9,143.47,143.43,2.73341115]
[1763177316621,0.2,143.47,143.45,2.73341115]
[1763177316819,0.2,143.47,143.46,3.43557272]
[1763177317327,0.2,143.47,143.46,13.22440041]
[1763177317510,0.2,143.47,143.46,3.43557272]
[1763177317712,0.2,143.47,143.46,2.87557272]
[1763177318931,0.2,143.47,143.46,1.88649122]
[1763177319432,0.2,143.47,143.44,29.6285186]
[1763177319635,0.9,143.47,143.44,1.74432965]
[1763177320007,0.7,143.46,143.44,0.14216157]
[1763177320427,0.7,143.46,143.44,1.74432965]
[1763177321530,0.7,143.46,143.43,1.74432965]
[1763177322036,0.7,143.46,143.44,1.74432965]
[1763177322934,0.7,143.46,143.43,1.74432965]
[1763177324917,0.2,143.47,143.44,1.74432965]
[1763177325220,0.2,143.47,143.46,1.74432965]
[1763177326218,0.89,143.47,143.45,1.88649122]
[1763177326923,0.2,143.47,143.46,2.30432965]
[1763177327122,0.2,143.47,143.46,2.44649122]
[1763177327835,0.2,143.48,143.46,2.44649122]
[1763177327836,0.2,143.48,143.47,16.90108753]
[1763177328042,0.2,143.48,143.47,20.74974683]
[1763177330820,0.2,143.48,143.47,8.85658949]
[1763177331142,0.2,143.48,143.47,1.88649122]
[1763177333921,0.89,143.48,143.46,24.39552965]
[1763177334122,0.89,143.48,143.46,1.74432965]
[1763177336452,0.2,143.48,143.47,0.14216157]
[1763177336648,0.2,143.48,143.47,1.88649122]
[1763177338238,0.2,143.48,143.45,6.97087864]
[1763177338239,0.89,143.48,143.46,1.74432965]
[1763177338631,0.69,143.47,143.46,1.88649122]
[1763177338829,0.69,143.47,143.44,0.14216157]
[1763177339040,0.69,143.47,143.45,1.74432965]
[1763177339222,0.2,143.48,143.46,1.74432965]
[1763177339425,0.2,143.48,143.47,1.88649122]
[1763177340148,0.2,143.48,143.47,0.14216157]
[1763177340548,0.2,143.48,143.47,24.89769122]
[1763177341136,0.2,143.48,143.47,31.86778949]
[1763177341623,0.2,143.48,143.47,31.50778949]
[1763177341950,0.2,143.48,143.47,24.53769122]
[1763177342336,0.2,143.48,143.47,31.50778949]
[1763177343950,0.2,143.48,143.47,31.86778949]
[1763177344522,0.2,143.48,143.47,48.63393578]
[1763177346655,0.2,143.48,143.47,41.65661718]
[1763177347653,0.2,143.48,143.47,43.40094683]
[1763177348538,0.2,143.48,143.47,41.65661718]
[1763177349751,0.2,143.48,143.47,43.40094683]
[1763177349945,0.2,143.48,143.47,48.63393578]
[1763177350146,0.2,143.48,143.47,51.42596453]
[1763177351760,0.2,143.48,143.47,41.29661718]
[1763177352478,0.2,143.48,143.47,0.14216157]
[1763177352479,0.9,143.48,143.47,0.14216157]
[1763177352768,0.9,143.48,143.45,0.14216157]
[1763177352934,0.72,143.47,143.45,0.14216157]
[1763177353135,0.72,143.47,143.45,1.88649122]
[1763177353957,0.72,143.47,143.45,0.14216157]
[1763177357363,0.72,143.47,143.4,16.7440828]
[1763177357568,2.46432965,143.47,143.42,0.14216157]
[1763177357764,2.46432965,143.47,143.41,0.14216157]
[1763177358068,2.46432965,143.46,143.41,1.88649122]
[1763177358276,0.72,143.46,143.41,1.88649122]
[1763177358562,0.72,143.45,143.41,1.88649122]
[1763177359265,2.46432965,143.45,143.4,0.14216157]
[1763177359468,2.46432965,143.45,143.4,22.79336157]
[1763177359641,0.72,143.44,143.4,22.79336157]
[1763177360466,1.74432965,143.42,143.35,6.97593303]
[1763177360669,0.72,143.44,143.38,1.88649122]
[1763177360870,2.46432965,143.43,143.38,22.79336157]
[1763177361174,2.46432965,143.43,143.38,24.53769122]
[1763177361470,0.72,143.42,143.38,24.53769122]
[1763177362243,22.6512,143.46,143.39,2.10432965]
[1763177362444,0.72,143.45,143.41,1.88649122]
[1763177369180,0.72,143.45,143.29,33.09848302]
[1763177369181,1.74432965,143.42,143.29,33.09848302]
[1763177369477,6.9773186,143.44,143.35,1.74432965]
[1763177369478,1.74432965,143.4,143.35,1.74432965]
[1763177369793,0.72,143.39,143.35,1.74432965]
[1763177370261,0.72,143.39,143.35,2.41432965]
[1763177370580,0.72,143.39,143.36,1.74432965]
[1763177371167,0.72,143.39,143.37,0.14216157]
[1763177372264,22.6512,143.46,143.38,1.74432965]
[1763177372465,0.72,143.47,143.4,0.14216157]
[1763177372671,1.74432965,143.46,143.4,1.88649122]
[1763177372870,1.74432965,143.46,143.4,24.53769122]
[1763177373168,0.72,143.45,143.4,24.53769122]
[1763177373368,2.46432965,143.45,143.4,22.79336157]
[1763177373776,0.72,143.44,143.4,22.79336157]
[1763177374163,2.46432965,143.44,143.4,0.14216157]
[1763177374581,0.72,143.43,143.4,0.14216157]
[1763177375469,0.72,143.43,143.4,1.88649122]
[1763177378873,0.72,143.43,143.4,2.87050159]
[1763177379589,0.72,143.43,143.4,0.14216157]
[1763177380566,0.72,143.43,143.4,2.87050159]
[1763177380768,0.72,143.45,143.41,3.39834002]
[1763177380974,0.72,143.44,143.41,2.72834002]
[1763177382316,0.72,143.44,143.4,0.14216157]
[1763177382482,3.44834002,143.44,143.4,22.79336157]
[1763177382662,0.72,143.44,143.4,22.6512]
[1763177382858,0.71,143.43,143.4,22.6512]
[1763177383288,0.71,143.43,143.39,2.72834002]
[1763177383484,3.43834002,143.43,143.39,0.14216157]
[1763177383782,3.43834002,143.43,143.37,25.37954002]
[1763177383960,0.71,143.42,143.38,0.14216157]
[1763177384167,3.43834002,143.42,143.37,22.6512]
[1763177384683,0.71,143.41,143.37,22.6512]
[1763177385061,3.43834002,143.41,143.37,22.6512]
[1763177385359,3.43834002,143.41,143.36,0.14216157]
[1763177385682,3.43834002,143.41,143.35,2.72834002]
[1763177385683,0.71,143.4,143.35,0.14216157]
[1763177386059,3.43834002,143.4,143.35,0.14216157]
[1763177386389,0.71,143.39,143.35,0.14216157]
[1763177386569,0.71,143.39,143.35,2.87050159]
[1763177388572,0.71,143.39,143.35,0.14216157]
[1763177388771,0.71,143.39,143.35,2.87050159]
[1763177388989,0.71,143.39,143.35,22.79336157]
[1763177389289,3.43834002,143.39,143.35,22.6512]
[1763177389590,3.43834002,143.39,143.33,2.72834002]
[1763177389591,2.72834002,143.38,143.33,2.72834002]
[1763177389775,3.43834002,143.38,143.33,2.72834002]
[1763177389975,0.71,143.37,143.33,2.72834002]
[1763177390276,3.43834002,143.37,143.33,0.14216157]
[1763177390668,0.71,143.36,143.33,0.14216157]
[1763177390867,0.71,143.36,143.32,0.1]
[1763177390868,3.43834002,143.36,143.32,0.1]
[1763177391068,0.71,143.36,143.32,0.1]
[1763177391392,3.43834002,143.35,143.32,0.1]
[1763177391896,0.71,143.34,143.32,0.1]
[1763177392669,3.43834002,143.34,143.32,0.1]
[1763177393099,3.43834002,143.33,143.32,0.1]
[1763177394070,28.81788004,143.33,143.32,0.1]
[1763177394379,38.60670773,143.33,143.32,0.1]
[1763177395294,38.60670773,143.33,143.26,0.1]
[1763177395593,2.72834002,143.27,143.26,0.1]
[1763177395766,3.43834002,143.27,143.26,0.1]
[1763177400397,0.71,143.27,143.26,0.1]
[1763177400599,3.43834002,143.27,143.26,0.1]
[1763177401398,13.22716771,143.27,143.26,0.1]
[1763177404687,0.71,143.27,143.26,0.1]
[1763177404895,3.43834002,143.27,143.26,0.1]
[1763177406412,3.43834002,143.27,143.24,0.1]
[1763177406413,38.60670773,143.27,143.24,0.1]
[1763177406602,37.89670773,143.25,143.24,0.1]
[1763177406987,38.60670773,143.25,143.24,0.1]
[1763177408208,33.15002769,143.25,143.24,0.1]
[1763177408390,38.60670773,143.25,143.24,0.1]
[1763177408788,38.48760519,143.25,143.24,0.1]
[1763177409917,38.62976676,143.25,143.24,0.1]
[1763177410387,38.62976676,143.25,143.21,0.1]
[1763177410388,28.96004161,143.25,143.21,0.1]
[1763177410607,25.37954002,143.22,143.21,0.1]
[1763177410801,35.85836771,143.22,143.21,0.1]
[1763177411004,3.41834002,143.22,143.21,0.1]
[1763177417613,6.14668004,143.22,143.21,0.1]
[1763177418129,16.0776693,143.22,143.21,0.1]
[1763177419018,83.26218926,143.21,143.19,0.1]
[1763177419216,15.3876693,143.2,143.19,0.1]
[1763177419423,16.0676693,143.2,143.19,0.1]
[1763177419621,16.0676693,143.2,143.18,0.1]
[1763177419622,15.24550773,143.19,143.18,0.1]
[1763177419924,66.0676693,143.19,143.18,0.1]
[1763177420298,32.44002769,143.17,143.16,0.1]
[1763177420506,37.89670773,143.17,143.16,0.1]
[1763177420706,38.57670773,143.17,143.16,0.1]
[1763177421601,25.37954002,143.17,143.16,0.1]
[1763177421830,26.05954002,143.17,143.16,0.1]
[1763177422129,35.84836771,143.17,143.16,0.1]
[1763177422306,38.57670773,143.17,143.16,0.1]
[1763177423727,38.7188693,143.17,143.16,0.1]
[1763177423928,0.68,143.18,143.16,0.1]
[1763177424135,2.72834002,143.17,143.16,0.1]
[1763177424511,26.05954002,143.17,143.16,0.1]
[1763177426234,25.37954002,143.17,143.16,0.1]
[1763177426529,26.05954002,143.17,143.16,0.1]
[1763177428137,38.57670773,143.17,143.16,0.1]
[1763177429131,38.57670773,143.17,143.14,0.1]
[1763177429315,28.78788004,143.16,143.14,0.1]
[1763177432641,28.10788004,143.16,143.14,0.1]
[1763177432822,2.72834002,143.16,143.14,0.1]
[1763177433022,25.37954002,143.16,143.14,0.1]
[1763177433309,22.6512,143.16,143.14,0.1]
[1763177433509,25.37954002,143.16,143.15,0.77]
[1763177433714,2.72834002,143.16,143.15,0.77]
[1763177433924,35.16836771,143.2,143.15,0.77]
[1763177433925,2.72834002,143.17,143.15,0.77]
[1763177434130,9.78882769,143.18,143.15,0.1]
[1763177434325,2.72834002,143.16,143.15,0.1]
[1763177435450,2.72834002,143.17,143.15,0.77]
[1763177435620,2.72834002,143.16,143.15,0.1]
[1763177436836,3.40834002,143.16,143.15,0.1]
[1763177437824,2.72834002,143.16,143.15,0.1]
[1763177438826,1.75332329,143.16,143.15,0.1]
[1763177439026,24.40452329,143.16,143.15,0.1]
[1763177439851,33.12002769,143.16,143.15,0.1]
[1763177440031,41.88664414,143.16,143.15,0.1]
[1763177440645,41.88664414,143.16,143.14,0.1]
[1763177440843,2.43332329,143.15,143.14,0.1]
[1763177441157,2.43332329,143.15,143.13,0.1]
[1763177441158,9.78882769,143.14,143.13,0.1]
[1763177441322,12.22215098,143.14,143.13,0.1]
[1763177442051,12.22215098,143.14,143.12,0.1]
[1763177442260,9.58877802,143.13,143.11,0.1]
[1763177442424,17.48212085,143.12,143.11,0.1]
[1763177442624,100.0,143.18,143.11,0.76]
[1763177442947,1.99999999,143.19,143.11,0.76]
[1763177442948,22.6512,143.12,143.11,0.76]
[1763177443127,1.75332329,143.13,143.11,0.76]
[1763177443327,22.6512,143.12,143.11,0.76]
[1763177443527,1.75332329,143.13,143.11,0.76]
[1763177443953,1.75332329,143.12,143.11,0.76]
[1763177445561,3.50664658,143.12,143.11,0.1]
[1763177445770,4.21664658,143.12,143.11,0.1]
[1763177446279,9.47661645,143.12,143.11,0.1]
[1763177446932,8.76661645,143.12,143.11,0.1]
[1763177447345,9.47661645,143.12,143.11,0.1]
[1763177451473,0.71,143.12,143.11,0.1]
[1763177451771,9.47661645,143.12,143.11,0.1]
[1763177453159,0.71,143.15,143.11,0.76]
[1763177453362,1.75332329,143.14,143.11,0.76]
[1763177454274,1.75332329,143.13,143.11,0.76]
[1763177454440,9.78882769,143.14,143.11,0.1]
[1763177454770,3.50664658,143.12,143.11,0.1]
[1763177455061,4.21664658,143.12,143.11,0.1]
[1763177456652,0.71,143.14,143.11,0.1]
[1763177456965,8.76661645,143.12,143.11,0.1]
[1763177458068,9.47661645,143.12,143.11,0.1]
[1763177458766,8.76661645,143.12,143.11,0.1]
[1763177458971,2.46332329,143.12,143.11,0.1]
[1763177459486,0.71,143.22,143.12,6.98714365]
[1763177459662,1.75332329,143.2,143.15,1.75332329]
[1763177459964,1.75332329,143.2,143.13,0.66]
[1763177459965,1.75332329,143.17,143.13,0.66]
[1763177460160,0.71,143.2,143.13,0.66]
[1763177460472,1.75332329,143.18,143.13,2.41332329]
[1763177460954,1.75332329,143.18,143.14,0.66]
[1763177462638,9.78882769,143.21,143.14,0.66]
[1763177462844,50.14216157,143.24,143.16,1.75332329]
[1763177462845,22.6512,143.23,143.16,1.75332329]
[1763177463045,1.75332329,143.21,143.17,0.66]
[1763177463260,1.75332329,143.2,143.17,0.66]
[1763177463871,1.75332329,143.21,143.17,0.66]
[1763177466879,1.75332329,143.22,143.17,2.41332329]
[1763177467079,1.75332329,143.22,143.17,9.39793762]
[1763177467250,2.46332329,143.22,143.18,0.66]
[1763177469265,2.46332329,143.22,143.14,40.25798213]
[1763177469266,1.75332329,143.22,143.14,22.79336157]
[1763177469461,1.75332329,143.17,143.12,0.66]
[1763177469774,2.46332329,143.17,143.12,2.41332329]
[1763177469953,2.46332329,143.16,143.12,0.66]
[1763177470153,1.75332329,143.15,143.12,0.66]
[1763177470351,2.42332329,143.15,143.11,0.82]
[1763177471374,1.75332329,143.14,143.11,0.82]
[1763177471782,2.42332329,143.13,143.11,0.1]
[1763177471949,1.75332329,143.12,143.11,0.1]
[1763177472149,2.42332329,143.12,143.11,0.1]
[1763177472458,1.75332329,143.12,143.11,0.1]
[1763177472679,2.41332329,143.12,143.11,0.1]
[1763177473977,4.16664658,143.12,143.11,0.1]
[1763177474145,2.41332329,143.12,143.11,0.1]
[1763177475080,0.66,143.14,143.11,0.1]
[1763177475250,1.75332329,143.12,143.11,0.1]
[1763177476978,1.75332329,143.13,143.11,0.1]
[1763177477389,1.75332329,143.12,143.11,0.1]
[1763177478583,2.41332329,143.12,143.11,0.1]
[1763177478791,1.75332329,143.12,143.11,0.1]
[1763177480996,2.41332329,143.12,143.11,0.1]
[1763177482009,41.86664414,143.12,143.11,0.1]
[1763177484795,42.00880571,143.12,143.11,0.1]
[1763177485088,42.00880571,143.12,143.1,0.1]
[1763177485089,11.54215098,143.11,143.1,0.1]
[1763177485390,116.50215098,143.11,143.1,0.1]
[1763177486784,123.51544414,143.11,143.09,0.1]
[1763177487091,2.41332329,143.1,143.09,0.1]
[1763177487305,139.15335098,143.1,143.09,0.1]
[1763177491274,137.40002769,143.1,143.09,0.1]
[1763177491475,139.15335098,143.1,143.09,0.1]
[1763177495487,9.78882769,143.09,143.08,0.1]
[1763177495701,19.21544414,143.09,143.08,0.1]
[1763177496279,19.21544414,143.09,143.05,0.1]
[1763177496483,11.54215098,143.06,143.05,0.1]
[1763177496908,12.20215098,143.06,143.05,0.1]
[1763177497498,19.21544414,143.06,143.05,0.1]
[1763177498883,7.01329316,143.08,143.05,0.8]
[1763177499097,1.75332329,143.06,143.05,0.8]
[1763177500225,1.75332329,143.06,143.05,0.1]
[1763177500701,1.75332329,143.06,143.05,0.8]
[1763177500903,2.74323531,143.06,143.05,0.8]
[1763177501094,2.74323531,143.06,143.05,0.1]
[1763177502291,3.40323531,143.06,143.05,0.1]
[1763177502505,2.74323531,143.06,143.05,0.1]
[1763177503703,2.74323531,143.06,143.05,0.81]
[1763177503896,2.74323531,143.07,143.05,0.81]
[1763177504294,2.74323531,143.07,143.05,0.1]
[1763177504500,2.74323531,143.06,143.05,0.1]
[1763177504899,2.74323531,143.06,143.05,0.81]
[1763177505090,22.6512,143.09,143.05,0.81]
[1763177505291,2.74323531,143.08,143.05,0.81]
[1763177507906,104.3,143.13,143.06,2.74323531]
[1763177507907,2.74323531,143.11,143.06,2.74323531]
[1763177508106,2.74323531,143.11,143.07,0.71]
[1763177509705,104.97,143.13,143.07,0.71]
[1763177510015,2.74323531,143.14,143.09,2.74323531]
[1763177510404,2.74323531,143.14,143.1,0.71]
[1763177510606,22.6512,143.15,143.1,3.59539688]
[1763177510607,2.74323531,143.15,143.1,3.59539688]
[1763177510812,2.74323531,143.16,143.11,2.74323531]
[1763177511014,2.74323531,143.16,143.11,3.45323531]
[1763177511211,2.74323531,143.16,143.12,0.71]
[1763177511905,2.74323531,143.14,143.12,0.71]
[1763177512116,3.41323531,143.16,143.1,0.71]
[1763177512117,2.74323531,143.13,143.1,0.71]
[1763177512305,2.74323531,143.12,143.08,0.14216157]
[1763177512624,2.74323531,143.12,143.09,0.71]
[1763177513501,2.74323531,143.1,143.06,0.85216157]
[1763177513749,0.67,143.12,143.06,3.59539688]
[1763177513927,2.74323531,143.11,143.06,3.59539688]
[1763177514238,2.74323531,143.11,143.07,3.45323531]
[1763177514431,2.74323531,143.11,143.08,0.71]
[1763177514631,2.74323531,143.09,143.06,0.71]
[1763177515017,2.74323531,143.1,143.06,0.71]
[1763177516920,0.67,143.11,143.06,3.59539688]
[1763177516921,2.74323531,143.11,143.06,3.59539688]
[1763177517330,2.74323531,143.11,143.07,0.71]
[1763177518040,32.44002769,143.14,143.05,0.1]
[1763177518041,3.41323531,143.1,143.05,0.1]
[1763177518220,2.74323531,143.08,143.06,0.71]
[1763177518416,2.74323531,143.1,143.06,0.71]
[1763177519240,2.74323531,143.09,143.06,0.71]
[1763177519954,2.74323531,143.07,143.05,0.1]
[1763177520237,0.67,143.08,143.05,0.1]
[1763177520238,2.74323531,143.06,143.05,0.1]
[1763177520834,3.41323531,143.06,143.05,0.1]
[1763177521034,26.06443531,143.06,143.05,0.1]
[1763177523441,26.20659688,143.06,143.05,0.1]
[1763177523638,2.74323531,143.02,143.01,0.1]
[1763177523841,25.39443531,143.02,143.01,0.1]
[1763177524022,26.06443531,143.02,143.01,0.1]
[1763177527426,38.59649831,143.02,143.01,0.1]
[1763177528451,25.39443531,143.01,143.0,0.1]
[1763177528670,130.36443531,143.01,143.0,0.1]
[1763177529337,133.10767062,143.01,143.0,0.1]
[1763177529548,3.41323531,143.04,143.0,0.1]
[1763177529740,25.39443531,143.01,143.0,0.1]
[1763177530629,22.6512,143.01,143.0,0.1]
[1763177530831,25.39443531,143.01,143.0,0.1]
[1763177531261,35.843263,143.01,143.0,0.1]
[1763177531557,38.58649831,143.01,143.0,0.1]
[1763177533949,35.843263,143.01,143.0,0.1]
[1763177534157,25.39443531,143.01,143.0,0.1]
[1763177535029,28.79767062,143.01,143.0,0.1]
[1763177535342,38.58649831,143.01,143.0,0.1]
[1763177538853,38.58649831,143.01,142.96,0.1]
[1763177539053,25.39443531,142.97,142.96,0.1]
[1763177539261,28.13767062,142.97,142.96,0.1]
[1763177539562,28.79767062,142.97,142.96,0.1]
[1763177539747,3.40323531,142.97,142.96,0.1]
[1763177540455,6.14647062,142.97,142.96,0.1]
[1763177540642,28.79767062,142.97,142.96,0.1]
[1763177541964,25.39443531,142.97,142.96,0.1]
[1763177542953,0.66,143.02,142.96,0.79]
[1763177543162,2.74323531,143.04,142.96,3.53323531]
[1763177543163,9.78882769,143.03,142.96,3.53323531]
[1763177543348,2.74323531,143.0,142.97,0.69]
[1763177543750,2.74323531,143.01,142.97,3.43323531]
[1763177543972,2.74323531,143.08,142.98,0.14216157]
[1763177544153,0.66,143.09,143.01,2.74323531]
[1763177544350,66.8,143.13,143.02,3.43323531]
[1763177544351,2.74323531,143.06,143.02,3.43323531]
[1763177544654,2.74323531,143.09,143.04,2.74323531]
[1763177544861,25.39443531,143.09,143.05,0.69]
[1763177545060,2.74323531,143.07,143.05,0.69]
[1763177545862,25.39443531,143.06,142.97,17.48571932]
[1763177546064,2.74323531,143.05,143.03,0.69]
[1763177546264,2.74323531,143.05,143.0,2.74323531]
[1763177546873,2.74323531,143.05,143.01,0.69]
[1763177548372,2.74323531,143.04,143.01,0.69]
[1763177549268,25.39443531,143.05,143.01,0.69]
[1763177549577,2.74323531,143.04,143.01,0.69]
[1763177555053,22.6512,143.06,143.01,3.43323531]
[1763177555258,0.66,143.1,143.03,2.74323531]
[1763177555462,13.192063,143.12,143.04,2.74323531]
[1763177555670,2.74323531,143.09,143.04,3.43323531]
[1763177555872,2.74323531,143.09,143.05,0.69]
[1763177556490,2.74323531,143.08,143.05,0.69]
[1763177560871,2.74323531,143.09,143.05,0.69]
[1763177561096,2.74323531,143.08,143.05,0.69]
[1763177561797,3.40323531,143.07,143.02,0.83216157]
[1763177562014,3.40323531,143.07,143.03,0.69]
[1763177562284,2.74323531,143.08,143.03,3.43323531]
[1763177562676,2.74323531,143.08,143.04,0.7]
[1763177562881,22.6512,143.11,143.07,1.75493361]
[1763177563064,22.6512,143.11,143.05,0.14216157]
[1763177563065,1.75493361,143.1,143.05,0.14216157]
[1763177563264,1.75493361,143.09,143.06,0.7]
[1763177563495,1.75493361,143.09,143.04,1.75493361]
[1763177563666,2.42493361,143.09,143.05,0.7]
[1763177564208,1.75493361,143.09,143.05,0.7]
[1763177564364,22.6512,143.11,143.06,1.75493361]
[1763177564566,22.6512,143.11,143.07,1.75493361]
[1763177564863,24.40613361,143.11,143.06,1.75493361]
[1763177565271,104.3,143.14,143.07,0.84216157]
[1763177565476,1.75493361,143.12,143.07,2.59709518]
[1763177565676,1.75493361,143.12,143.07,0.84216157]
[1763177565886,1.75493361,143.12,143.08,0.7]
[1763177566070,2.42493361,143.12,143.08,0.7]
[1763177566585,1.75493361,143.12,143.08,0.7]
[1763177566767,2.42493361,143.12,143.08,0.7]
[1763177567085,1.75493361,143.1,143.06,0.7]
[1763177567300,2.42493361,143.11,143.06,2.45493361]
[1763177567681,0.67,143.11,143.07,2.45493361]
[1763177567874,0.67,143.11,143.07,0.7]
[1763177567875,2.42493361,143.11,143.07,0.7]
[1763177568994,0.67,143.11,143.07,2.45493361]
[1763177569874,2.42493361,143.11,143.07,2.45493361]
[1763177570197,1.75493361,143.08,143.0,61.4]
[1763177570374,0.67,143.12,143.06,1.75493361]
[1763177570566,0.67,143.11,143.06,1.75493361]
[1763177570797,1.75493361,143.09,143.04,24.54829518]
[1763177570995,1.75493361,143.09,143.04,25.24829518]
[1763177571298,2.42493361,143.08,143.04,25.24829518]
[1763177571481,2.42493361,143.08,143.04,0.14216157]
[1763177571675,2.42493361,143.08,143.04,0.84216157]
[1763177572778,0.67,143.08,143.07,0.069896]
[1763177572986,2.42493361,143.08,143.07,0.069896]
[1763177573568,0.67,143.08,143.07,0.069896]
[1763177573878,2.42493361,143.08,143.07,0.069896]
[1763177576083,1.75493361,143.08,143.07,0.069896]
[1763177577306,24.40613361,143.09,143.07,0.069896]
[1763177578080,25.07613361,143.09,143.07,0.069896]
[1763177578301,24.40613361,143.09,143.07,0.069896]
[1763177578503,25.07613361,143.09,143.07,0.069896]
[1763177578795,0.67,143.08,143.07,0.069896]
[1763177579000,24.40613361,143.09,143.07,0.069896]
[1763177579194,1.75493361,143.1,143.07,0.769896]
[1763177579579,1.75493361,143.11,143.07,0.769896]
[1763177580187,2.42493361,143.11,143.07,0.769896]
[1763177580383,2.42493361,143.11,143.07,2.66699118]
[1763177581504,1.75493361,143.1,143.07,0.069896]
[1763177581804,1.75493361,143.1,143.07,0.91205757]
[1763177582784,1.75493361,143.1,143.07,0.069896]
[1763177582988,2.42493361,143.1,143.07,0.769896]
[1763177583190,1.75493361,143.1,143.07,0.769896]
[1763177583587,1.75493361,143.08,143.07,0.069896]
[1763177583990,2.42493361,143.08,143.03,1.75493361]
[1763177584195,2.42493361,143.07,143.02,1.75493361]
[1763177584590,1.75493361,143.06,143.02,1.75493361]
[1763177584796,2.42493361,143.06,143.01,1.75493361]
[1763177584999,1.75493361,143.06,143.01,1.75493361]
[1763177585210,0.67,143.05,143.0,6.99271432]
[1763177585517,2.42493361,143.05,143.01,1.75493361]
[1763177585808,0.67,143.09,143.03,1.75493361]
[1763177586014,1.75493361,143.1,143.05,1.75493361]
[1763177586182,1.75493361,143.1,143.06,1.75493361]
[1763177586386,1.75493361,143.1,143.05,0.14216157]
[1763177586611,2.42493361,143.09,143.04,1.75493361]
[1763177586807,1.75493361,143.08,143.03,1.89709518]
[1763177587007,0.67,143.09,143.03,1.89709518]
[1763177587214,2.42493361,143.08,143.03,1.89709518]
[1763177587410,2.42493361,143.08,143.03,0.14216157]
[1763177587617,2.42493361,143.08,143.03,1.89709518]
[1763177587618,1.75493361,143.08,143.03,1.89709518]
[1763177587788,0.67,143.08,143.03,1.89709518]
[1763177587991,0.67,143.08,143.04,1.75493361]
[1763177588207,2.42493361,143.08,143.03,1.89709518]
[1763177588717,0.67,143.07,143.03,1.89709518]
[1763177589325,0.67,143.07,143.03,0.14216157]
[1763177589617,1.75493361,143.05,143.0,1.89709518]
[1763177589999,1.75493361,143.05,143.0,0.36216157]
[1763177590204,2.40493361,143.05,143.0,2.11709518]
[1763177590404,2.40493361,143.05,143.01,0.22]
[1763177590587,0.65,143.05,143.01,1.97493361]
[1763177590788,29.67093444,143.08,143.02,1.97493361]
[1763177590997,1.75493361,143.06,143.01,1.89709518]
[1763177591293,1.75493361,143.06,143.0,0.36216157]
[1763177591294,2.40493361,143.05,143.0,2.11709518]
[1763177591493,1.75493361,143.04,143.0,0.14216157]
[1763177591725,2.40493361,143.04,143.0,0.14216157]
[1763177591897,0.65,143.03,143.0,0.14216157]